[Event "Live Chess"]
[Site "Chess.com"]
[Date "2023.05.21"]
[Round "-"]
[White "Olisingapore"]
[Black "Bob2pen"]
[Result "0-1"]
[WhiteElo "1803"]
[BlackElo "1879"]
[TimeControl "300"]
[EndTime "9:04:42 PDT"]
[Termination "Bob2pen won by checkmate"]

1. d4 {[%clk 0:04:59]} 1... Nf6 {[%clk 0:04:58.2]} 2. c4 {[%clk 0:04:58.7]} 2...
c5 {[%clk 0:04:57.4]} 3. d5 {[%clk 0:04:57.6]} 3... e6 {[%clk 0:04:56.5]} 4. g3
{[%clk 0:04:55.7]} 4... exd5 {[%clk 0:04:55.4]} 5. cxd5 {[%clk 0:04:55.6]} 5...
d6 {[%clk 0:04:54.7]} 6. Bg2 {[%clk 0:04:55.5]} 6... g6 {[%clk 0:04:53.9]} 7.
Nc3 {[%clk 0:04:54.9]} 7... Bg7 {[%clk 0:04:53.1]} 8. Nf3 {[%clk 0:04:54.2]}
8... O-O {[%clk 0:04:52.1]} 9. O-O {[%clk 0:04:54]} 9... a6 {[%clk 0:04:51.1]}
10. a4 {[%clk 0:04:52.8]} 10... Bg4 {[%clk 0:04:49]} 11. Bf4 {[%clk 0:04:52.2]}
11... Qe7 {[%clk 0:04:44.9]} 12. h3 {[%clk 0:04:51.5]} 12... Bxf3 {[%clk
0:04:43.3]} 13. Bxf3 {[%clk 0:04:51.4]} 13... Nbd7 {[%clk 0:04:42.4]} 14. Qd3
{[%clk 0:04:48.8]} 14... Rab8 {[%clk 0:04:37]} 15. e4 {[%clk 0:04:47.1]} 15...
Ne5 {[%clk 0:04:34.1]} 16. Bxe5 {[%clk 0:04:45.4]} 16... Qxe5 {[%clk 0:04:32.6]}
17. Rfe1 {[%clk 0:04:44.6]} 17... Nd7 {[%clk 0:04:25.7]} 18. Kg2 {[%clk
0:04:29.9]} 18... Rfe8 {[%clk 0:04:23.9]} 19. Bg4 {[%clk 0:04:14.3]} 19... Nf6
{[%clk 0:04:16.4]} 20. f4 {[%clk 0:04:12.2]} 20... Qd4 {[%clk 0:04:12.3]} 21.
Qc2 {[%clk 0:04:10.6]} 21... Nxg4 {[%clk 0:04:06.1]} 22. hxg4 {[%clk 0:04:07.7]}
22... b5 {[%clk 0:04:02.8]} 23. axb5 {[%clk 0:04:06.3]} 23... axb5 {[%clk
0:04:01.6]} 24. Red1 {[%clk 0:03:52.6]} 24... Qc4 {[%clk 0:03:58.2]} 25. Ra6
{[%clk 0:03:40.6]} 25... b4 {[%clk 0:03:56.1]} 26. Qd3 {[%clk 0:03:27.5]} 26...
Qxd3 {[%clk 0:03:50.7]} 27. Rxd3 {[%clk 0:03:26.5]} 27... bxc3 {[%clk
0:03:49.8]} 28. bxc3 {[%clk 0:03:26.4]} 28... Rb2+ {[%clk 0:03:47.6]} 29. Kh3
{[%clk 0:03:21.6]} 29... Rd8 {[%clk 0:03:46]} 30. e5 {[%clk 0:03:19.8]} 30...
dxe5 {[%clk 0:03:44.2]} 31. fxe5 {[%clk 0:03:19.7]} 31... Bxe5 {[%clk
0:03:42.8]} 32. d6 {[%clk 0:03:17.8]} 32... Kg7 {[%clk 0:03:30.3]} 33. Rc6
{[%clk 0:03:00.2]} 33... c4 {[%clk 0:03:25.4]} 34. Rxc4 {[%clk 0:02:59.3]} 34...
Rxd6 {[%clk 0:03:24.2]} 35. Rxd6 {[%clk 0:02:56.7]} 35... Bxd6 {[%clk
0:03:22.9]} 36. Rc6 {[%clk 0:02:54.6]} 36... Be5 {[%clk 0:03:20.9]} 37. Rc5
{[%clk 0:02:48.7]} 37... Bf6 {[%clk 0:03:13.8]} 38. c4 {[%clk 0:02:46.3]} 38...
Rc2 {[%clk 0:03:10.5]} 39. Rc8 {[%clk 0:02:41]} 39... Rc3 {[%clk 0:03:08.7]} 40.
c5 {[%clk 0:02:39.5]} 40... Be5 {[%clk 0:03:07.8]} 41. c6 {[%clk 0:02:36.4]}
41... Rxg3+ {[%clk 0:03:06.1]} 42. Kh4 {[%clk 0:02:35.7]} 42... Rc3 {[%clk
0:02:59.1]} 43. g5 {[%clk 0:02:29.8]} 43... f5 {[%clk 0:02:51.5]} 44. gxf6+
{[%clk 0:02:26.9]} 44... Kxf6 {[%clk 0:02:49.6]} 45. Kg4 {[%clk 0:02:26.3]}
45... h5+ {[%clk 0:02:48.2]} 46. Kh4 {[%clk 0:02:25.1]} 46... Ke6 {[%clk
0:02:33.9]} 47. Rg8 {[%clk 0:02:17]} 47... Bf6# {[%clk 0:02:31.6]} 0-1

[Event "Live Chess"]
[Site "Chess.com"]
[Date "2023.05.21"]
[Round "-"]
[White "EdenHazard8"]
[Black "MarkLim1"]
[Result "1/2-1/2"]
[WhiteElo "1928"]
[BlackElo "1726"]
[TimeControl "300"]
[EndTime "9:04:43 PDT"]
[Termination "Game drawn by agreement"]

1. e4 {[%clk 0:04:58.4]} 1... c6 {[%clk 0:04:59.1]} 2. d3 {[%clk 0:04:57.4]}
2... d5 {[%clk 0:04:58.7]} 3. exd5 {[%clk 0:04:56.5]} 3... cxd5 {[%clk
0:04:58.6]} 4. d4 {[%clk 0:04:55.5]} 4... Nf6 {[%clk 0:04:58.2]} 5. Nf3 {[%clk
0:04:55.4]} 5... Bg4 {[%clk 0:04:57.3]} 6. Bd3 {[%clk 0:04:55.3]} 6... Nc6
{[%clk 0:04:56.7]} 7. c3 {[%clk 0:04:54.5]} 7... e6 {[%clk 0:04:56.1]} 8. O-O
{[%clk 0:04:53.9]} 8... Bd6 {[%clk 0:04:55.4]} 9. h3 {[%clk 0:04:52.8]} 9... Bh5
{[%clk 0:04:54.3]} 10. Re1 {[%clk 0:04:52.3]} 10... O-O {[%clk 0:04:53.5]} 11.
Nbd2 {[%clk 0:04:51.4]} 11... Bg6 {[%clk 0:04:50.7]} 12. Nf1 {[%clk 0:04:50.4]}
12... Bxd3 {[%clk 0:04:49.8]} 13. Qxd3 {[%clk 0:04:49.8]} 13... Rb8 {[%clk
0:04:49.3]} 14. Bg5 {[%clk 0:04:48.9]} 14... h6 {[%clk 0:04:48.1]} 15. Bxf6
{[%clk 0:04:48]} 15... Qxf6 {[%clk 0:04:47.3]} 16. Ne3 {[%clk 0:04:46.9]} 16...
b5 {[%clk 0:04:46]} 17. Ng4 {[%clk 0:04:46]} 17... Qe7 {[%clk 0:04:45.1]} 18.
Nge5 {[%clk 0:04:45.9]} 18... Nxe5 {[%clk 0:04:44]} 19. Nxe5 {[%clk 0:04:45.8]}
19... Bxe5 {[%clk 0:04:43]} 20. Rxe5 {[%clk 0:04:45.7]} 20... a5 {[%clk
0:04:42.4]} 21. Rae1 {[%clk 0:04:44]} 21... Qd7 {[%clk 0:04:40.7]} 22. f4 {[%clk
0:04:42.5]} 22... b4 {[%clk 0:04:39.9]} 23. f5 {[%clk 0:04:40.6]} 23... bxc3
{[%clk 0:04:39]} 24. bxc3 {[%clk 0:04:39.8]} 24... exf5 {[%clk 0:04:36.9]} 25.
Qxf5 {[%clk 0:04:38.8]} 25... Qxf5 {[%clk 0:04:35.8]} 26. Rxf5 {[%clk
0:04:38.7]} 26... Rfd8 {[%clk 0:04:32.8]} 27. Ree5 {[%clk 0:04:35.1]} 27... Rb2
{[%clk 0:04:30.7]} 28. Rxd5 {[%clk 0:04:33.4]} 28... Rxd5 {[%clk 0:04:30.1]} 29.
Rxd5 {[%clk 0:04:33.3]} 29... Rxa2 {[%clk 0:04:28]} 30. c4 {[%clk 0:04:32.2]}
30... Rc2 {[%clk 0:04:23.8]} 31. c5 {[%clk 0:04:31.1]} 31... a4 {[%clk
0:04:22.6]} 32. Rd8+ {[%clk 0:04:30.3]} 32... Kh7 {[%clk 0:04:20.5]} 33. Ra8
{[%clk 0:04:30.2]} 33... Rc4 {[%clk 0:04:18.8]} 34. Ra7 {[%clk 0:04:23.7]} 34...
Rxd4 {[%clk 0:04:15.7]} 1/2-1/2

[Event "Live Chess"]
[Site "Chess.com"]
[Date "2023.05.21"]
[Round "-"]
[White "PaulHumphreys"]
[Black "friarnator"]
[Result "0-1"]
[WhiteElo "1358"]
[BlackElo "2039"]
[TimeControl "300"]
[EndTime "9:04:45 PDT"]
[Termination "friarnator won by resignation"]

1. d4 {[%clk 0:04:56.2]} 1... Nf6 {[%clk 0:04:58.8]} 2. Nc3 {[%clk 0:04:56.1]}
2... e6 {[%clk 0:04:56.3]} 3. Bf4 {[%clk 0:04:54.1]} 3... Bb4 {[%clk 0:04:55.2]}
4. a3 {[%clk 0:04:44.2]} 4... Bxc3+ {[%clk 0:04:53.7]} 5. bxc3 {[%clk
0:04:43.1]} 5... d5 {[%clk 0:04:53.6]} 6. e3 {[%clk 0:04:41]} 6... c5 {[%clk
0:04:52]} 7. Nf3 {[%clk 0:04:30.7]} 7... Qa5 {[%clk 0:04:49.3]} 8. dxc5 {[%clk
0:04:21.4]} 8... Qxc3+ {[%clk 0:04:47.1]} 9. Nd2 {[%clk 0:04:18.5]} 9... Ne4
{[%clk 0:04:45.6]} 10. Rb1 {[%clk 0:04:10.3]} 10... Nc6 {[%clk 0:04:37.2]} 11.
Bb5 {[%clk 0:04:07.2]} 11... O-O {[%clk 0:04:35.8]} 12. Rb3 {[%clk 0:03:54.2]}
12... Qxd2+ {[%clk 0:04:16.8]} 13. Qxd2 {[%clk 0:03:48.1]} 13... Nxd2 {[%clk
0:04:16.7]} 14. Kxd2 {[%clk 0:03:47.4]} 14... Na5 {[%clk 0:04:12.6]} 15. Rb2
{[%clk 0:03:41.1]} 15... a6 {[%clk 0:04:11.5]} 16. Be2 {[%clk 0:03:38.3]} 16...
Bd7 {[%clk 0:04:09.6]} 17. Rhb1 {[%clk 0:03:33]} 17... Rfc8 {[%clk 0:03:58.8]}
18. f3 {[%clk 0:03:22.4]} 18... Rxc5 {[%clk 0:03:56.6]} 19. e4 {[%clk
0:03:20.1]} 19... d4 {[%clk 0:03:53]} 20. Bd6 {[%clk 0:03:16.3]} 20... Rc6
{[%clk 0:03:51.8]} 21. e5 {[%clk 0:03:14.3]} 21... b5 {[%clk 0:03:46.5]} 22. Bb4
{[%clk 0:03:08.4]} 22... Nc4+ {[%clk 0:03:44.7]} 23. Bxc4 {[%clk 0:02:59.3]}
23... bxc4 {[%clk 0:03:43.5]} 24. f4 {[%clk 0:02:50.5]} 24... c3+ {[%clk
0:03:42.3]} 25. Bxc3 {[%clk 0:02:46.3]} 25... dxc3+ {[%clk 0:03:42.2]} 0-1

[Event "Live Chess"]
[Site "Chess.com"]
[Date "2023.05.21"]
[Round "-"]
[White "PaulyD81"]
[Black "hturner40"]
[Result "0-1"]
[WhiteElo "1086"]
[BlackElo "1786"]
[TimeControl "300"]
[EndTime "9:04:49 PDT"]
[Termination "hturner40 won on time"]

1. d4 {[%clk 0:04:57.3]} 1... Nf6 {[%clk 0:04:57.1]} 2. c4 {[%clk 0:04:56.9]}
2... Nc6 {[%clk 0:04:55.6]} 3. Nc3 {[%clk 0:04:56.8]} 3... e5 {[%clk 0:04:54.2]}
4. e3 {[%clk 0:04:52.7]} 4... exd4 {[%clk 0:04:44.2]} 5. exd4 {[%clk 0:04:47.1]}
5... d5 {[%clk 0:04:43]} 6. Qe2+ {[%clk 0:04:39.2]} 6... Be6 {[%clk 0:04:40.2]}
7. cxd5 {[%clk 0:04:34.7]} 7... Nxd5 {[%clk 0:04:38.1]} 8. Nxd5 {[%clk
0:04:29.8]} 8... Qxd5 {[%clk 0:04:36.2]} 9. Nf3 {[%clk 0:04:03.4]} 9... Bb4+
{[%clk 0:04:20.7]} 10. Bd2 {[%clk 0:03:58.2]} 10... Nxd4 {[%clk 0:04:15.8]} 11.
Nxd4 {[%clk 0:03:52]} 11... Bxd2+ {[%clk 0:04:02]} 12. Qxd2 {[%clk 0:03:40]}
12... O-O-O {[%clk 0:04:00.7]} 13. Nf3 {[%clk 0:03:08]} 13... Qe4+ {[%clk
0:03:37.8]} 14. Qe2 {[%clk 0:03:04]} 14... Qb4+ {[%clk 0:03:36.3]} 15. Nd2
{[%clk 0:02:56.1]} 15... Rhe8 {[%clk 0:03:26.6]} 16. a3 {[%clk 0:02:35]} 16...
Qxb2 {[%clk 0:03:04.5]} 17. Rd1 {[%clk 0:02:23.1]} 17... Bb3 {[%clk 0:02:59.2]}
18. Nxb3 {[%clk 0:00:59.8]} 18... Rxd1+ {[%clk 0:02:45.1]} 19. Kxd1 {[%clk
0:00:44.1]} 19... Rxe2 {[%clk 0:02:32.2]} 20. Bxe2 {[%clk 0:00:41.3]} 20...
Qxb3+ {[%clk 0:02:30.6]} 21. Kc1 {[%clk 0:00:33.2]} 21... Qc3+ {[%clk
0:02:23.8]} 22. Kb1 {[%clk 0:00:26.3]} 22... Qb3+ {[%clk 0:02:16.2]} 23. Kc1
{[%clk 0:00:22.6]} 23... Qxa3+ {[%clk 0:02:13.9]} 24. Kb1 {[%clk 0:00:21.5]}
24... Qb3+ {[%clk 0:02:10.3]} 25. Kc1 {[%clk 0:00:21.2]} 25... Qc3+ {[%clk
0:02:07.5]} 26. Kb1 {[%clk 0:00:21.1]} 26... Qd2 {[%clk 0:02:04.7]} 27. Bg4+
{[%clk 0:00:14.3]} 27... Kb8 {[%clk 0:01:58.9]} 28. Rd1 {[%clk 0:00:13.2]} 28...
Qb4+ {[%clk 0:01:57.2]} 29. Kc1 {[%clk 0:00:09]} 29... Qxg4 {[%clk 0:01:52.1]}
30. Rd8+ {[%clk 0:00:07]} 30... Qc8 {[%clk 0:01:50.8]} 31. Rxc8+ {[%clk
0:00:06]} 31... Kxc8 {[%clk 0:01:50]} 32. Kd2 {[%clk 0:00:05.2]} 32... a5 {[%clk
0:01:48.4]} 33. Ke3 {[%clk 0:00:05.1]} 33... b5 {[%clk 0:01:47.3]} 34. Ke4
{[%clk 0:00:05]} 34... a4 {[%clk 0:01:44.1]} 35. f4 {[%clk 0:00:04.9]} 35... a3
{[%clk 0:01:42.3]} 36. Ke5 {[%clk 0:00:04.8]} 36... a2 {[%clk 0:01:40.4]} 37. f5
{[%clk 0:00:04.7]} 37... a1=Q+ {[%clk 0:01:38.2]} 38. Kd5 {[%clk 0:00:00.3]}
38... Qf6 {[%clk 0:01:35.7]} 39. g4 {[%clk 0:00:00.2]} 39... c6+ {[%clk
0:01:33.6]} 0-1